bitfinex/quotes_BTCUSD_20251113
["timestamp","ask_amount","ask_price","bid_price","bid_amount"]
[1763005243286,0.0935297,102540.0,102510.0,0.59388063]
[1763005243499,0.0935297,102540.0,102510.0,0.34205327]
[1763005243707,0.45664998,102560.0,102530.0,0.31723765]
[1763005243920,2.0,102550.0,102530.0,0.64972889]
[1763005244548,2.00024602,102550.0,102530.0,0.30748153]
[1763005244758,0.00024602,102550.0,102530.0,0.30748461]
[1763005245817,0.00024602,102550.0,102540.0,0.35109583]
[1763005246029,0.00024602,102550.0,102540.0,0.06563]
[1763005246238,0.00024602,102550.0,102540.0,0.35109583]
[1763005246448,0.00024602,102550.0,102540.0,0.69334319]
[1763005247285,0.00024602,102550.0,102540.0,0.40787736]
[1763005247497,0.00024602,102550.0,102540.0,0.60292319]
[1763005247914,0.00024602,102550.0,102540.0,0.40787736]
[1763005248122,0.00024602,102550.0,102540.0,0.60292319]
[1763005248325,0.00024602,102550.0,102540.0,0.60392319]
[1763005248543,0.00024602,102550.0,102540.0,0.69434319]
[1763005249634,0.04470602,102550.0,102540.0,0.001]
[1763005250701,0.04470602,102550.0,102540.0,0.19604583]
[1763005250918,0.00024602,102550.0,102540.0,0.001]
[1763005255062,0.00572602,102550.0,102540.0,0.001]
[1763005255499,0.00024602,102550.0,102540.0,0.001]
[1763005256526,0.00572602,102550.0,102540.0,0.001]
[1763005256934,0.04979602,102550.0,102540.0,0.001]
[1763005258348,0.00572602,102550.0,102540.0,0.001]
[1763005258480,0.04979602,102550.0,102540.0,0.001]
[1763005259303,0.41027811,102550.0,102540.0,0.001]
[1763005259504,2.41027811,102550.0,102540.0,0.001]
[1763005259723,2.74239612,102550.0,102540.0,0.001]
[1763005260165,2.0,102540.0,102510.0,0.59389508]
[1763005260387,0.01824013,102540.0,102530.0,0.60364221]
[1763005260644,0.00024602,102550.0,102540.0,0.19504583]
[1763005260852,0.00124602,102550.0,102540.0,0.19504583]
[1763005261277,0.00124602,102550.0,102540.0,0.60362319]
[1763005261516,0.00124602,102550.0,102530.0,0.62955089]
[1763005261732,0.00124602,102550.0,102540.0,0.19504583]
[1763005262369,0.00124602,102550.0,102540.0,0.35361583]
[1763005262594,0.00024602,102550.0,102540.0,0.69586319]
[1763005262822,0.00024602,102550.0,102540.0,1.01986319]
[1763005263913,0.00024602,102550.0,102540.0,1.01886319]
[1763005264309,0.00024602,102550.0,102540.0,0.16057]
[1763005264515,0.00024602,102550.0,102540.0,0.69986319]
[1763005264726,0.00024602,102550.0,102540.0,0.41257736]
[1763005264943,0.00024602,102550.0,102540.0,0.60762319]
[1763005265138,0.00572602,102550.0,102540.0,0.004]
[1763005265346,0.04979602,102550.0,102540.0,0.004]
[1763005265555,2.0,102560.0,102540.0,0.002]
[1763005265763,2.0,102550.0,102540.0,0.26107447]
[1763005265966,2.0,102560.0,102540.0,0.35720447]
[1763005266170,2.0,102560.0,102540.0,0.26307532]
[1763005266171,2.01824718,102560.0,102540.0,0.26307532]
[1763005266372,2.0,102550.0,102540.0,0.26307532]
[1763005266576,2.0,102560.0,102550.0,0.04958]
[1763005266780,2.0,102570.0,102550.0,0.25435501]
[1763005266986,0.01824757,102570.0,102550.0,0.11561]
[1763005267139,0.0718387,102570.0,102550.0,0.11561]
[1763005267345,0.0273787,102570.0,102550.0,0.31063648]
[1763005267554,0.0273787,102570.0,102560.0,0.2610378]
[1763005267763,0.01824757,102570.0,102560.0,0.2610378]
[1763005267985,0.0880497,102580.0,102560.0,0.3561678]
[1763005268190,0.11544085,102580.0,102560.0,0.3561678]
[1763005268385,0.11544085,102580.0,102560.0,0.2610378]
[1763005268590,0.11544085,102580.0,102560.0,0.3561678]
[1763005269028,0.04955,102570.0,102550.0,0.24460616]
[1763005269221,0.04955,102570.0,102550.0,0.04958]
[1763005269429,0.04407,102560.0,102540.0,0.25437761]
[1763005269629,0.04994,102560.0,102540.0,0.04972028]
[1763005270032,0.04407,102560.0,102540.0,0.2447565]
[1763005270855,0.00587,102550.0,102540.0,0.00014028]
[1763005271490,0.0880497,102560.0,102540.0,0.35634186]
[1763005271723,0.10632232,102560.0,102540.0,0.06617028]
[1763005271897,0.10632232,102560.0,102540.0,0.00014028]
[1763005271898,0.04955,102550.0,102540.0,0.00014028]
[1763005272330,0.04955,102550.0,102540.0,0.00214028]
[1763005272500,0.00548,102550.0,102540.0,0.00114028]
[1763005272742,0.04955,102550.0,102540.0,0.00114028]
[1763005273171,2.49884042,102550.0,102540.0,0.00114028]
[1763005273383,2.0678245,102550.0,102540.0,0.00114028]
[1763005273592,2.0678245,102550.0,102540.0,0.00214028]
[1763005273970,2.0678245,102550.0,102540.0,0.00114028]
[1763005274393,2.87439599,102550.0,102540.0,0.00114028]
[1763005274557,2.44338007,102550.0,102540.0,0.00114028]
[1763005275379,2.44338007,102550.0,102540.0,0.00014028]
[1763005275778,2.44438007,102550.0,102540.0,0.00014028]
[1763005275977,2.44538007,102550.0,102540.0,0.00014028]
[1763005276398,2.40196133,102550.0,102540.0,0.00014028]
[1763005279187,2.3928245,102550.0,102540.0,0.00014028]
[1763005279537,2.43624324,102550.0,102540.0,0.00014028]
[1763005279900,2.86725916,102550.0,102540.0,0.00014028]
[1763005280303,2.84898466,102550.0,102540.0,0.00014028]
[1763005280478,2.41796874,102550.0,102540.0,0.00014028]
[1763005292089,3.14740501,102550.0,102540.0,0.00014028]
[1763005292488,3.04898466,102550.0,102540.0,0.00014028]
[1763005293319,2.84898466,102550.0,102540.0,0.00014028]
[1763005293524,2.41796874,102550.0,102540.0,0.00014028]
[1763005294126,2.84898466,102550.0,102540.0,0.00014028]
[1763005294774,3.04898466,102550.0,102540.0,0.00014028]
[1763005294976,3.14740501,102550.0,102540.0,0.00014028]
[1763005295193,3.34243182,102550.0,102540.0,0.00014028]
[1763005295376,3.34243182,102550.0,102500.0,0.03481163]
[1763005295377,0.04341874,102530.0,102500.0,0.00975609]
[1763005295579,0.04341874,102530.0,102500.0,0.73124199]
[1763005295580,0.0880497,102520.0,102500.0,0.73124199]
[1763005295746,0.0880497,102520.0,102500.0,0.30022607]
[1763005295946,0.04446,102510.0,102500.0,0.73124199]
[1763005296140,0.04994,102510.0,102500.0,0.01022475]
[1763005296590,0.04994,102510.0,102500.0,0.2053467]
[1763005296994,0.04994,102510.0,102500.0,0.00046866]
[1763005297341,0.04994,102510.0,102500.0,0.19559061]
[1763005297549,0.09401,102510.0,102500.0,0.00046866]
[1763005297769,0.09401,102510.0,102500.0,0.00146866]
[1763005297978,0.04994,102510.0,102500.0,0.00146866]
[1763005298166,0.04994,102510.0,102500.0,0.19659061]
[1763005298598,0.04994,102510.0,102500.0,0.19759061]
[1763005299217,0.04994,102510.0,102500.0,0.00246866]
[1763005299424,0.09401,102510.0,102500.0,0.00246866]
[1763005300269,0.04994,102510.0,102500.0,0.00246866]
[1763005300446,0.09401,102510.0,102500.0,0.00246866]
[1763005301719,0.04446,102510.0,102500.0,0.00246866]
[1763005301928,0.05033,102510.0,102500.0,0.19759061]
[1763005302143,0.05033,102510.0,102500.0,0.00246866]
[1763005302668,0.05033,102510.0,102500.0,0.19759061]
[1763005302892,0.05033,102510.0,102500.0,0.00246866]
[1763005304192,0.04341874,102530.0,102500.0,0.26042061]
[1763005304402,0.04446,102530.0,102510.0,0.74650397]
[1763005304613,0.04446,102530.0,102520.0,0.19508388]
[1763005305034,0.04446,102530.0,102510.0,0.77855397]
[1763005305249,0.04994,102530.0,102510.0,0.14268]
[1763005305459,0.09401,102530.0,102510.0,0.0478]
[1763005306089,0.00044,102520.0,102500.0,0.73224262]
[1763005306503,0.00044,102520.0,102500.0,0.73124262]
[1763005306731,0.00044,102520.0,102500.0,0.00046866]
[1763005306732,0.0449,102520.0,102500.0,0.00046866]
[1763005306936,0.0930897,102510.0,102500.0,0.00046866]
[1763005307357,0.1375497,102510.0,102500.0,0.00246866]
[1763005307990,0.0930897,102510.0,102500.0,0.00246866]
[1763005308194,0.00504,102510.0,102500.0,0.00146866]
[1763005308402,0.1325097,102520.0,102500.0,0.25842061]
[1763005308578,2.0,102510.0,102500.0,0.25842061]
[1763005308787,2.0,102510.0,102500.0,0.06429866]
[1763005308993,2.0,102510.0,102500.0,0.25942061]
[1763005309121,2.0,102510.0,102500.0,0.25842061]
[1763005309575,0.00548,102510.0,102500.0,0.00346866]
[1763005309990,0.04955,102510.0,102500.0,0.00246866]
[1763005310207,0.04955,102510.0,102500.0,0.00346866]
[1763005311037,0.00548,102510.0,102500.0,0.00346866]
[1763005311246,0.04955,102510.0,102500.0,0.00346866]
[1763005312295,2.0880497,102520.0,102510.0,0.19510291]
[1763005312507,0.0880497,102520.0,102510.0,0.73674883]
[1763005312713,0.0880497,102520.0,102510.0,0.40061291]
[1763005312914,0.0935297,102520.0,102500.0,0.63936112]
[1763005313115,0.0935297,102520.0,102500.0,0.73324112]
[1763005313320,0.00548,102520.0,102510.0,0.19610291]
[1763005313559,0.00548,102520.0,102510.0,0.24490291]
[1763005313772,2.0,102520.0,102510.0,0.30773291]
[1763005313971,2.00587,102520.0,102510.0,0.0488]
[1763005314170,0.00587,102520.0,102510.0,0.001]
[1763005314552,0.00587,102520.0,102500.0,0.73123996]
[1763005314865,0.00587,102520.0,102500.0,0.73223996]
[1763005315065,0.04956,102520.0,102500.0,0.63735996]
[1763005315730,0.04956,102520.0,102500.0,0.43248458]
[1763005315924,0.04956,102520.0,102500.0,0.6276054]
[1763005316307,0.04956,102520.0,102510.0,0.001]
[1763005316488,0.04956,102520.0,102500.0,0.6276054]
[1763005316698,0.00587,102520.0,102500.0,0.6276054]
[1763005316987,0.00587,102520.0,102500.0,0.6286054]
[1763005317193,0.00587,102520.0,102510.0,0.19510291]
[1763005317602,2.1350297,102520.0,102510.0,0.001]
[1763005317802,2.1350297,102520.0,102500.0,0.00046866]
[1763005318012,2.0880497,102520.0,102510.0,0.001]
[1763005318433,2.1291597,102520.0,102510.0,0.001]
[1763005318579,2.1379597,102520.0,102510.0,0.001]
[1763005319440,2.0,102510.0,102500.0,0.00046866]
[1763005319648,2.0412,102510.0,102500.0,0.00046866]
[1763005319779,0.0412,102510.0,102500.0,0.00046866]
[1763005320375,2.0412,102510.0,102500.0,0.00046866]
[1763005322706,0.0880497,102520.0,102500.0,0.78294653]
[1763005322960,0.0880497,102520.0,102510.0,0.73798883]
[1763005323547,0.0880497,102520.0,102510.0,0.83276883]
[1763005323758,0.0880497,102520.0,102510.0,0.11187]
[1763005323899,0.1000397,102520.0,102510.0,0.04763]
[1763005324101,0.1010397,102520.0,102510.0,0.04763]
[1763005324320,0.1000397,102520.0,102500.0,0.43148458]
[1763005324496,0.0990397,102520.0,102500.0,0.72136946]
[1763005324703,0.1000397,102520.0,102510.0,0.19510291]
[1763005324928,0.1010397,102520.0,102510.0,0.24145291]
[1763005325526,0.0890497,102520.0,102510.0,0.24145291]
[1763005325733,0.0880497,102520.0,102510.0,0.24145291]
[1763005325950,2.0,102530.0,102520.0,0.19508388]
[1763005326158,0.0389,102550.0,102540.0,0.19504583]
[1763005326474,0.0389,102550.0,102540.0,0.25573583]
[1763005326857,0.0882957,102560.0,102550.0,0.19502681]
[1763005326858,0.000246,102560.0,102550.0,0.19502681]
[1763005327060,0.000246,102560.0,102550.0,0.81949273]
[1763005327314,0.00038633,102560.0,102550.0,0.81949273]
[1763005327450,0.00038633,102560.0,102550.0,0.38847681]
[1763005327657,0.00038633,102560.0,102550.0,0.81949273]
[1763005328104,0.00038633,102560.0,102550.0,1.14249273]
[1763005328508,0.00038633,102560.0,102550.0,1.14349273]
[1763005329720,0.00038633,102560.0,102550.0,1.23054243]
[1763005330120,0.00038633,102560.0,102550.0,1.23454243]
[1763005330322,0.00038633,102560.0,102550.0,1.27796117]
[1763005330730,0.00038633,102560.0,102550.0,1.34996362]
[1763005330931,2.0,102600.0,102590.0,0.19493533]
[1763005331146,0.00014038,102600.0,102590.0,0.10715]
[1763005331377,2.0,102590.0,102580.0,0.19496977]
[1763005331581,0.00014038,102600.0,102590.0,0.34931077]
[1763005331774,0.02032038,102600.0,102570.0,0.36817]
[1763005331979,0.02032038,102600.0,102570.0,1.00392346]
[1763005332183,0.00049186,102580.0,102570.0,1.0865547]
[1763005332653,0.00049186,102580.0,102570.0,0.95354592]
[1763005332809,0.00049186,102580.0,102570.0,0.71751878]
[1763005333533,0.00049186,102580.0,102570.0,0.71851878]
[1763005334744,0.03753186,102580.0,102570.0,0.001]
[1763005335155,0.05771186,102580.0,102570.0,0.001]
[1763005335375,2.05771186,102580.0,102570.0,0.001]
[1763005336618,2.03753186,102580.0,102570.0,0.001]
[1763005337822,2.05771186,102580.0,102570.0,0.001]
[1763005338247,2.38071186,102580.0,102570.0,0.001]
[1763005338455,2.72338745,102580.0,102570.0,0.001]
[1763005338872,2.0,102570.0,102540.0,0.05492229]
[1763005339074,0.0880497,102560.0,102540.0,0.24996797]
[1763005339481,0.1250897,102560.0,102540.0,0.24021571]
[1763005339686,2.0,102550.0,102540.0,0.04517]
[1763005339896,0.02018,102550.0,102530.0,0.67776327]
[1763005340125,0.02018,102550.0,102540.0,0.19504583]
[1763005340299,2.0,102560.0,102540.0,0.20579812]
[1763005340648,2.0,102560.0,102540.0,0.20479812]
[1763005340856,2.0,102560.0,102540.0,0.63985371]
[1763005341112,2.0,102560.0,102550.0,0.19502681]
[1763005341803,0.0880497,102570.0,102550.0,0.6920624]
[1763005341984,0.0880497,102570.0,102560.0,0.06198]
[1763005342476,0.0880497,102570.0,102550.0,0.34367559]
[1763005342811,0.0880497,102570.0,102550.0,0.53770219]
[1763005343018,0.0890497,102570.0,102550.0,0.53770219]
[1763005343217,0.0890497,102570.0,102550.0,0.63008219]
[1763005343518,0.001,102570.0,102560.0,0.2569878]
[1763005343758,0.0890497,102570.0,102560.0,0.06198]
[1763005344075,0.0890497,102570.0,102560.0,0.2569878]
[1763005344398,0.0890497,102570.0,102550.0,0.28740617]
[1763005344599,0.0890497,102570.0,102550.0,0.63008186]
[1763005344846,0.0880497,102570.0,102550.0,0.63007172]
[1763005345059,0.0890497,102570.0,102550.0,0.63007172]
[1763005345261,0.0890497,102570.0,102560.0,0.1950078]
[1763005345782,0.0880497,102570.0,102550.0,0.63007172]
[1763005345986,0.0890497,102570.0,102550.0,0.34267559]
[1763005346365,0.0880497,102570.0,102550.0,0.53769981]
[1763005346757,0.0880497,102570.0,102550.0,0.63007981]
[1763005346976,0.0890497,102570.0,102550.0,0.43505559]
[1763005347608,0.0890497,102570.0,102540.0,0.29717812]
[1763005347820,0.0890497,102570.0,102550.0,0.53769695]
[1763005348057,0.0880497,102570.0,102550.0,0.63007695]
[1763005348417,0.0890497,102570.0,102550.0,0.63007695]
[1763005349952,0.0880497,102570.0,102550.0,0.09238]
[1763005350175,0.0880497,102570.0,102550.0,0.43505559]
[1763005352056,0.0880497,102570.0,102550.0,0.63007428]
[1763005352255,0.0880497,102570.0,102550.0,0.43505559]
[1763005353939,2.0,102560.0,102540.0,0.43338559]
[1763005354150,0.0880497,102550.0,102530.0,0.82306193]
[1763005354353,0.0880497,102550.0,102530.0,0.61833425]
[1763005355103,0.0880497,102550.0,102540.0,0.001]
[1763005355458,0.0880497,102550.0,102540.0,0.05838]
[1763005355688,0.0880497,102550.0,102530.0,0.81339775]
[1763005355902,0.0880497,102550.0,102530.0,0.81639775]
[1763005356113,0.0880497,102550.0,102540.0,0.05838]
[1763005356755,0.0880497,102550.0,102530.0,0.61933425]
[1763005356886,0.0880497,102550.0,102530.0,0.66789764]
[1763005357276,0.0880497,102550.0,102540.0,0.002]
[1763005357681,0.0880497,102550.0,102540.0,0.001]
[1763005358623,0.0880497,102550.0,102540.0,0.003]
[1763005359461,2.0,102560.0,102540.0,0.20779552]
[1763005359656,0.0880497,102550.0,102540.0,0.20779552]
[1763005359862,0.0880497,102550.0,102540.0,0.003]
[1763005360319,0.0880497,102550.0,102540.0,0.25542583]
[1763005360443,0.0880497,102550.0,102540.0,0.25342583]
[1763005360851,0.0880497,102550.0,102540.0,0.05938]
[1763005361249,0.0880497,102550.0,102540.0,0.05838]
[1763005361462,0.0880497,102550.0,102540.0,0.06138]
[1763005362117,0.0880497,102550.0,102540.0,0.003]
[1763005363283,2.0,102560.0,102540.0,0.26617812]
[1763005363470,0.01825684,102560.0,102540.0,0.69956371]
[1763005363776,0.0880497,102550.0,102540.0,0.69956371]
[1763005364148,0.0880497,102550.0,102540.0,0.06038]
[1763005364352,0.0880497,102550.0,102540.0,0.40105559]
[1763005364551,0.0880497,102550.0,102540.0,0.59610142]
[1763005364753,0.0880497,102550.0,102540.0,0.59710142]
[1763005364956,2.0,102560.0,102540.0,0.69656371]
[1763005365169,0.0880497,102550.0,102540.0,0.49176559]
[1763005365377,2.0,102560.0,102540.0,0.68881142]
[1763005365552,2.0,102550.0,102540.0,0.68881142]
[1763005365763,2.0,102560.0,102540.0,0.68881142]
[1763005365961,2.0,102550.0,102540.0,0.68881142]
[1763005366302,2.0,102560.0,102540.0,0.69856371]
[1763005366519,2.0,102550.0,102540.0,0.69956371]
[1763005366676,2.0,102550.0,102540.0,0.69756371]
[1763005366882,2.0,102560.0,102540.0,0.69856371]
[1763005367082,2.0,102550.0,102540.0,0.69756371]
[1763005367314,2.0,102560.0,102540.0,0.69756371]
[1763005367488,2.0,102550.0,102540.0,0.68781113]
[1763005367666,2.0,102560.0,102540.0,0.59710113]
[1763005367873,0.0880497,102550.0,102540.0,0.05938]
[1763005368118,0.0880497,102550.0,102540.0,0.25442583]
[1763005368301,2.0,102560.0,102540.0,0.60685371]
[1763005368499,2.0,102550.0,102540.0,0.60685371]
[1763005368849,2.0,102560.0,102540.0,0.60685371]
[1763005369053,0.0880497,102550.0,102540.0,0.60685371]
[1763005369262,0.0880497,102550.0,102540.0,0.60785371]
[1763005369464,2.0,102560.0,102550.0,0.19502681]
[1763005369667,2.0,102560.0,102540.0,0.69656371]
[1763005370044,2.0,102560.0,102540.0,0.69856371]
[1763005370300,0.0880497,102550.0,102540.0,0.002]
[1763005370524,0.0880497,102550.0,102540.0,0.19704583]
[1763005370698,2.0,102560.0,102540.0,0.26317812]
[1763005370901,0.0880497,102550.0,102540.0,0.60585371]
[1763005371832,0.0880497,102550.0,102540.0,0.60785371]
[1763005372362,2.0,102560.0,102550.0,0.19502195]
[1763005372575,2.0,102580.0,102560.0,0.26313819]
[1763005372800,0.0880497,102570.0,102540.0,0.20779812]
[1763005372981,0.0880497,102570.0,102550.0,0.30160573]
[1763005373436,2.0,102560.0,102540.0,0.58935983]
[1763005373646,2.0,102560.0,102550.0,0.30160573]
[1763005374677,2.0,102560.0,102550.0,0.35998573]
[1763005374813,2.0,102560.0,102550.0,0.30160573]
[1763005375018,2.0,102560.0,102550.0,0.30260573]
[1763005375321,2.0,102560.0,102550.0,0.001]
[1763005377527,2.0,102560.0,102550.0,0.25440681]
[1763005377745,2.0,102560.0,102550.0,0.19602681]
[1763005377924,2.0,102560.0,102550.0,0.001]
[1763005378127,2.0,102560.0,102550.0,0.19602681]
[1763005379913,2.0,102560.0,102550.0,0.68832609]
[1763005380956,2.0,102580.0,102570.0,0.19498723]
[1763005381367,0.0880497,102590.0,102580.0,0.19496977]
[1763005381543,0.0880497,102590.0,102580.0,0.34448977]
[1763005381754,2.0880497,102590.0,102570.0,0.5838679]
[1763005382048,2.0,102580.0,102570.0,0.6722079]
[1763005382286,0.001,102580.0,102570.0,0.24108862]
[1763005382487,0.001,102580.0,102570.0,0.6450479]
[1763005382676,2.0,102580.0,102570.0,0.30226862]
[1763005382822,2.0,102580.0,102570.0,0.19562]
[1763005383016,2.0,102580.0,102570.0,0.0461]
[1763005383220,2.0,102580.0,102570.0,0.24108878]
[1763005383445,0.001,102580.0,102570.0,0.39322878]
[1763005383819,2.0,102580.0,102570.0,0.39322878]
[1763005384051,2.0,102580.0,102560.0,0.20475677]
[1763005384235,0.0880497,102570.0,102550.0,0.66483815]
[1763005384438,2.0,102580.0,102570.0,0.19498874]
[1763005384663,2.0,102580.0,102560.0,0.48904928]
[1763005384859,0.08814095,102590.0,102550.0,0.59365743]
[1763005384860,0.0880497,102570.0,102550.0,0.59365743]
[1763005385069,0.0880497,102570.0,102550.0,0.68461743]
[1763005385449,2.0,102580.0,102560.0,0.26006819]
[1763005385656,0.0880497,102570.0,102560.0,0.26006819]
[1763005386102,0.0880497,102570.0,102560.0,0.35102819]
[1763005386313,0.0880497,102570.0,102560.0,0.26006819]
[1763005386767,0.00024593,102580.0,102570.0,0.19498878]
[1763005386983,2.00024593,102580.0,102570.0,0.19498878]
[1763005387198,2.00024593,102580.0,102570.0,0.72645806]
[1763005387199,0.00024593,102580.0,102570.0,0.72645806]
[1763005388532,0.00024593,102580.0,102570.0,1.04945806]
[1763005388961,0.00024593,102580.0,102570.0,0.61571878]
[1763005389171,0.00024593,102580.0,102570.0,0.70667878]
[1763005389921,0.00024593,102580.0,102570.0,1.04945806]
[1763005390728,0.0900497,102630.0,102620.0,0.19489378]
[1763005390931,0.0900497,102630.0,102620.0,0.63540306]
[1763005390932,0.00209125,102630.0,102620.0,0.63540306]
[1763005391142,0.00209125,102630.0,102620.0,0.72636306]
[1763005392386,0.00209125,102630.0,102620.0,1.04936306]
[1763005393960,0.00209125,102630.0,102620.0,1.05036306]
[1763005394380,0.00209125,102630.0,102620.0,1.05136306]
[1763005396211,0.00209125,102630.0,102620.0,0.70858378]
[1763005396409,0.00209125,102630.0,102620.0,1.05136306]
[1763005396813,0.00209125,102630.0,102620.0,0.70858378]
[1763005397028,0.00209125,102630.0,102620.0,1.13857762]
[1763005397449,0.00332019,102630.0,102620.0,1.16394086]
[1763005397655,0.00332019,102630.0,102620.0,1.16294086]
[1763005397874,0.00332019,102630.0,102620.0,1.16694086]
[1763005398622,0.00332019,102630.0,102620.0,1.16594086]
[1763005398958,0.00332019,102630.0,102620.0,1.16994086]
[1763005399365,0.00332019,102630.0,102620.0,1.14457762]
[1763005400240,0.00332019,102630.0,102620.0,1.18799636]
[1763005400872,0.0002,102650.0,102640.0,0.99126838]
[1763005401175,0.0002,102650.0,102640.0,1.13462808]
[1763005401373,0.0002,102650.0,102640.0,1.25148717]
[1763005401530,0.0002,102650.0,102640.0,1.24578808]
[1763005401957,0.0002,102650.0,102640.0,1.24778808]
[1763005402206,0.0002,102650.0,102640.0,1.24978808]
[1763005402343,0.0002,102650.0,102640.0,1.20636934]
[1763005402550,0.0002,102650.0,102640.0,1.18616934]
[1763005404168,0.0002,102650.0,102640.0,1.22958808]
[1763005404577,0.0002,102650.0,102640.0,1.18616934]
[1763005404998,0.0002,102650.0,102640.0,1.09811964]
[1763005405302,0.0002,102650.0,102640.0,0.15027]
[1763005405735,0.0002,102650.0,102640.0,0.004]
[1763005406152,2.0002,102650.0,102640.0,0.004]
[1763005406349,2.00069137,102650.0,102620.0,0.04242]
[1763005406566,0.0880497,102640.0,102620.0,0.04242]
[1763005407723,2.0,102630.0,102620.0,0.04242]
[1763005407945,2.0,102630.0,102610.0,0.04242]
[1763005408176,2.0,102630.0,102610.0,9.125e-05]
[1763005408177,0.0880497,102620.0,102610.0,9.125e-05]
[1763005408833,0.42999384,102630.0,102610.0,9.125e-05]
[1763005408834,2.0,102630.0,102610.0,9.125e-05]
[1763005409046,2.0880497,102620.0,102610.0,9.125e-05]
[1763005409636,2.0880497,102620.0,102610.0,0.00109125]
[1763005409863,2.0880497,102620.0,102610.0,9.125e-05]
[1763005410559,2.0,102630.0,102610.0,0.37904402]
[1763005410784,0.0880497,102620.0,102610.0,0.37904402]
[1763005410961,0.0880497,102620.0,102610.0,0.18413125]
[1763005411808,0.0880497,102620.0,102610.0,0.37904402]
[1763005412256,0.0880497,102620.0,102610.0,0.09936125]
[1763005412702,2.0,102630.0,102610.0,0.19387688]
[1763005412925,0.0880497,102620.0,102610.0,0.38878706]
[1763005413409,0.0880497,102620.0,102610.0,0.09936125]
[1763005413863,0.0880497,102620.0,102610.0,0.04238125]
[1763005415426,0.0880497,102620.0,102610.0,0.23729402]
[1763005415633,2.0,102630.0,102610.0,0.04238125]
[1763005415833,0.0880497,102620.0,102610.0,0.04238125]
[1763005417349,0.0880497,102620.0,102610.0,9.125e-05]
[1763005417776,0.56170799,102640.0,102610.0,0.26172965]
[1763005417985,0.0880497,102620.0,102610.0,0.05707125]
[1763005418403,0.10620873,102620.0,102610.0,0.25198402]
[1763005418635,0.10620873,102620.0,102610.0,9.125e-05]
[1763005418853,2.53620257,102620.0,102610.0,9.125e-05]
[1763005419034,2.10620873,102620.0,102610.0,9.125e-05]
[1763005419234,2.57962131,102620.0,102610.0,9.125e-05]
[1763005419612,2.14962747,102620.0,102610.0,9.125e-05]
[1763005420050,2.15062747,102620.0,102610.0,9.125e-05]
[1763005421128,2.15162747,102620.0,102610.0,9.125e-05]
[1763005423034,2.10820873,102620.0,102610.0,9.125e-05]
[1763005425157,2.10720873,102620.0,102610.0,9.125e-05]
[1763005425363,2.0890497,102620.0,102610.0,9.125e-05]
[1763005425577,2.10720507,102620.0,102610.0,9.125e-05]
[1763005425936,2.0890497,102620.0,102610.0,9.125e-05]
[1763005426373,2.0880497,102620.0,102610.0,9.125e-05]
[1763005427009,2.10620468,102620.0,102610.0,9.125e-05]
[1763005427672,2.14962342,102620.0,102610.0,9.125e-05]
[1763005428088,2.57961726,102620.0,102610.0,9.125e-05]
[1763005428286,2.14962342,102620.0,102610.0,9.125e-05]
[1763005429204,2.0880497,102620.0,102610.0,0.19500402]
[1763005429355,2.0890497,102620.0,102610.0,0.19500402]
[1763005429559,0.0900497,102620.0,102610.0,0.23729402]
[1763005429769,0.0890497,102620.0,102610.0,0.29427402]
[1763005429974,0.0880497,102620.0,102610.0,0.29427402]
[1763005430167,0.0880497,102620.0,102610.0,0.37904402]
[1763005430371,0.0880497,102620.0,102610.0,0.09936125]
[1763005430803,0.0880497,102620.0,102610.0,0.37904402]
[1763005431646,0.13171415,102640.0,102620.0,0.19488913]
[1763005431855,2.0,102630.0,102610.0,0.38878965]
[1763005432081,0.0880497,102620.0,102610.0,0.37904214]
[1763005432248,0.0880497,102620.0,102610.0,0.18413125]
[1763005432471,0.0880497,102620.0,102610.0,0.37904402]
[1763005433118,0.0880497,102620.0,102610.0,9.125e-05]
[1763005433579,0.0880497,102620.0,102610.0,0.19500402]
[1763005433785,2.0,102630.0,102610.0,0.30401965]
[1763005433935,0.0880497,102620.0,102610.0,0.30401965]
[1763005434162,0.0880497,102620.0,102610.0,0.09936125]
[1763005434342,0.0880497,102620.0,102610.0,0.04238125]
[1763005434544,0.0880497,102620.0,102610.0,9.125e-05]
[1763005435249,0.10627912,102620.0,102610.0,9.125e-05]
[1763005435916,2.10627912,102620.0,102610.0,9.125e-05]
[1763005437011,2.14969786,102620.0,102610.0,9.125e-05]
[1763005437395,2.13146844,102620.0,102610.0,9.125e-05]
[1763005437583,2.13146844,102620.0,102610.0,1.25e-06]
[1763005437584,2.91591168,102620.0,102610.0,1.25e-06]
[1763005437790,2.95625537,102620.0,102610.0,1.25e-06]
[1763005437954,2.98256975,102620.0,102610.0,1.25e-06]
[1763005438341,2.98356975,102620.0,102610.0,1.25e-06]
[1763005438782,2.98256975,102620.0,102610.0,1.25e-06]
[1763005438986,2.98356975,102620.0,102610.0,1.25e-06]
[1763005439184,2.7262714,102620.0,102610.0,1.25e-06]
[1763005439416,2.7252714,102620.0,102610.0,1.25e-06]
[1763005439629,2.7272714,102620.0,102610.0,1.25e-06]
[1763005440289,2.28409751,102620.0,102610.0,1.25e-06]
[1763005440428,2.71409135,102620.0,102610.0,1.25e-06]
[1763005441112,0.03140455,102620.0,102610.0,1.25e-06]
[1763005441323,0.03140455,102620.0,102610.0,0.36607402]
[1763005441324,0.02226935,102620.0,102610.0,0.36607402]
[1763005441535,0.02226935,102620.0,102610.0,1.25e-06]
[1763005441787,0.02026935,102620.0,102610.0,0.28757402]
[1763005442040,0.32324571,102640.0,102620.0,0.19488403]
[1763005442041,0.00024571,102640.0,102620.0,0.19488403]
[1763005442254,0.01849912,102640.0,102620.0,0.27338403]
[1763005442522,0.01849912,102640.0,102630.0,0.19487479]
[1763005443455,0.02049912,102640.0,102610.0,0.24350965]
[1763005443674,2.0880497,102630.0,102610.0,0.24350965]
[1763005443902,0.0880497,102630.0,102610.0,0.24350965]
[1763005444126,0.00024571,102640.0,102620.0,0.24661378]
[1763005444353,0.01849427,102640.0,102620.0,0.32722378]
[1763005444578,0.02049427,102640.0,102620.0,0.32722378]
[1763005444818,0.0880497,102630.0,102620.0,0.32722378]
[1763005445077,0.0880497,102630.0,102620.0,0.24661378]
[1763005446015,0.00224571,102640.0,102630.0,0.19487479]
[1763005446248,0.00224571,102640.0,102630.0,0.23580479]
[1763005446477,0.00024571,102640.0,102630.0,0.04093]
[1763005447147,0.00224571,102640.0,102630.0,0.04093]
[1763005447377,0.00224571,102640.0,102630.0,0.28752479]
[1763005447876,0.00024571,102640.0,102630.0,0.28752479]
[1763005448119,0.00224571,102640.0,102630.0,0.28752479]
[1763005448555,0.00024571,102640.0,102630.0,0.28752479]
[1763005448781,0.00224571,102640.0,102630.0,0.09265]
[1763005449016,0.00024571,102640.0,102630.0,0.04093]